Cogmind - Beta 17 @@@ ROGUE MODE // 2026.07.27 @ 19:15:28 Player: puppuppit Result: Destroyed by C-35 Carver with Carbide Saw Performance ------------- Evolutions (6) 3000 Regions Visited (9) 1800 Robots Destroyed (262) 1310 Value Destroyed (10459) 10459 Prototype IDs (40) 800 Alien Tech Used (0) 0 Bonus (7065) 7065 TOTAL SCORE: 24434 Bonus ------- Triggered High Security 1000 High Alert Combat Kills 3544 Follower Combat Kills 1981 Registered with UFD 300 Met Optimus in HQ 500 Friendly Fire -260 Cogmind --------- Core Integrity 0/1150 Matter 37/600 Energy 99/100 System Corruption 8% Temperature Cool (0) Movement Core (50) Location -4/Factory Parts ------- > --- POWER (2) -------- (None) > --- PROPULSION (7) --- (None) > --- UTILITY (6) ------ Coolant Injector Compact Matter Pod Compact Matter Pod Advanced Targeting Computer Advanced Hacking Suite > --- WEAPON (4) ------- (None) > --- INVENTORY (5) ---- Large Storage Unit Matter Compressor (0) Graphene Brace Long-range Tractor Beam Peak State ------------ > --- POWER ------------ Micro Fission Core Quantum Reactor > --- PROPULSION ------- Antigrav System Antigrav System Antigrav System Antigrav System Gyrokinetic Inverter Linear Gravjet Improved Linear Gravjet > --- UTILITY ---------- Advanced Cooling System High-capacity Storage Unit Advanced Targeting Computer Advanced Recoil Stabilizer Hacking Suite Advanced Hacking Suite > --- WEAPON ----------- KE Penetrator KE Penetrator KE Penetrator Hypervelocity Coil Gun > --- INVENTORY -------- F-cell Engine Micro Fission Core Coolant Injector Matter Compressor Matter Compressor Gravity Neutralizer Advanced Gravity Neutralizer Advanced Recoil Stabilizer Improved Weapon Shielding Graphene Brace Advanced Thermal Shield Long-range Tractor Beam Enhanced Gauss Cannon Enhanced Gauss Cannon Heavy Gauss Cannon Mini Smartbomb Launcher Improved Plasma Cutter Multitool Botcube [Rating: 118] Favorites ----------- Power Ion Engine Engine Ion Engine Power Core Micro Fission Core Reactor Fusion Reactor Propulsion Antigrav System Treads Light Treads Hover Unit Antigrav System Flight Unit VTOL Module Utility Large Storage Unit Device Self-contained Transmogrifier Storage Large Storage Unit Processor Advanced Targeting Computer Hackware Advanced Hacking Suite Protection Hardened Light Armor Plating Weapon Light Cannon Energy Gun Advanced Beam Rifle Energy Cannon Proton Cannon Ballistic Gun KE Penetrator Ballistic Cannon Light Cannon Launcher EMP Blaster Special Weapon CPS Tube Impact Weapon Heavy Mace Slashing Weapon Ripteeth Piercing Weapon Heavy Pick Build | -11 -10 -10 -7 -5 -5 -5 -5 -5 -4 ------- Run | Yrd Mat Sub Scr Fac Ext Cet Arc Hub Fac Slots Evolved 12 | . . . . 10 . . . . 2 Power 1 | . . . . . . . . . 1 Propulsion 5 | . . . . 4 . . . . 1 Utility 4 | . . . . 4 . . . . . Weapon 2 | . . . . 2 . . . . . Parts Attached 248 | 7 10 7 10 85 35 8 13 32 41 Power 20 | 1 1 1 1 5 4 1 . 2 4 Engine 8 | 1 1 1 . 1 3 . . 1 . Core 8 | . . . 1 3 . . . 1 3 Reactor 4 | . . . . 1 1 1 . . 1 Propulsion 72 | 2 2 . 1 22 12 4 5 9 15 Treads 22 | 2 2 . 1 6 9 1 . 1 . Leg . | . . . . . . . . . . Wheel . | . . . . . . . . . . Hover 44 | . . . . 13 2 3 5 7 14 Flight 6 | . . . . 3 1 . . 1 1 Utility 79 | 2 1 1 1 30 9 2 5 11 17 Device 37 | 1 . 1 . 13 4 1 4 4 9 Storage 10 | 1 1 . 1 . 2 . . 1 4 Processor 13 | . . . . 11 . . . 2 . Hackware 13 | . . . . 3 3 . . 4 3 Protection 6 | . . . . 3 . 1 1 . 1 Artifact . | . . . . . . . . . . Weapon 77 | 2 6 5 7 28 10 1 3 10 5 Energy Gun 2 | . . . . . 2 . . . . Energy Cannon 2 | . . 1 . 1 . . . . . Ballistic Gun 44 | 2 3 . . 17 5 1 3 10 3 Ballistic Cannon 17 | . 2 3 4 5 2 . . . 1 Launcher 4 | . 1 1 . 2 . . . . . Special Weapon 6 | . . . 3 2 1 . . . . Impact Weapon 1 | . . . . 1 . . . . . Slashing Weapon . | . . . . . . . . . . Piercing Weapon 1 | . . . . . . . . . 1 Special Melee Weapon . | . . . . . . . . . . Unidentified Prototypes 13 | . . 1 1 4 . 3 . 3 1 Corrupted Parts 2 | . . . . 2 . . . . . System Corruption 2 | . . . . 2 . . . . . Parts Lost 97 | . 1 3 . 22 13 1 5 16 36 Power 4 | . . . . . 1 . . . 3 Propulsion 47 | . . 1 . 7 7 . 4 8 20 Utility 18 | . . . . 8 1 1 1 1 6 Weapon 28 | . 1 2 . 7 4 . . 7 7 Highest Loss Streak 19 | . 1 3 . 6 4 1 5 8 19 To Critical Strikes 2 | . . . . 1 1 . . . . Average Backups 14 | 1 12 14 13 12 15 18 18 17 17 Power . | . . . . . . 1 1 1 1 Propulsion 1 | . 1 2 1 . 1 . 1 . . Utility 6 | . 3 4 6 4 7 10 9 10 9 Weapon 5 | . 7 7 3 5 4 4 5 4 3 Tool/Special . | . . . . . . . . . . Unused Backups 59 | . 8 . 20 19 2 1 1 . 8 Power 6 | . . . 2 3 . 1 . . . Propulsion 6 | . . . 5 1 . . . . . Utility 33 | . 5 . 10 9 2 . 1 . 6 Weapon 13 | . 3 . 3 6 . . . . 1 Tool/Special 1 | . . . . . . . . . 1 Average Slot Usage (%) 96 | . 99 99 99 90 97 99 97 93 93 Engine 7 | . 14 14 13 1 2 . . 2 2 Reactor 1 | . . . . 1 2 5 5 2 2 Treads 16 | . 28 27 27 10 6 4 . 1 . Hover 12 | . . . . 17 26 29 33 28 32 Device 11 | . 14 14 14 7 7 11 9 8 9 Storage 9 | . 14 14 14 5 5 5 5 5 4 Processor 4 | . . . . 11 13 11 11 5 5 Hackware 3 | . . . . 2 6 5 5 12 9 Energy Gun 1 | . . . 9 . . . . . . Ballistic Gun 11 | . 7 . 2 17 20 23 23 21 18 Ballistic Cannon 9 | . 20 26 11 1 . . . . . Peak Build Rating 118 | 9 12 23 39 94 93 106 104 106 118 Average Rating 51 | 7 9 12 29 75 83 95 99 88 101 On Entrance 54 | . 9 10 22 39 87 92 100 104 85 Avg Prop Armor Cover (%) 3 | 10 10 . . 3 1 1 . 4 10 Naked Turns . | . . . . . . . . . . Heaviest Build 90 | 15 32 32 36 68 74 83 87 86 90 Greatest Support 184 | 40 40 48 70 184 76 110 58 68 91 Greatest Overweight (x) 2 | . . . . 2 1 1 2 2 2 Average Overweight (x) . | . . . . . . . 1 1 . Largest Inventory Capacity 20 | 8 15 15 15 15 20 20 20 20 20 Average Capacity 15 | 7 13 15 15 15 16 20 20 20 18 Most Carried 20 | 3 15 15 15 15 20 20 20 20 20 Average Carried 15 | 1 12 14 13 14 16 19 19 18 18 Final Capacity 20 | 8 15 15 15 15 20 20 20 20 20 Final Carried 20 | 3 15 15 15 15 19 20 20 20 20 Transmogrified Parts 56 | . . 4 35 17 . . . . . Integrity Recovered 776 | . . 115 54 607 . . . . . Class Distribution -------------------- 53% | Mutant 39% | Scavenger-Gunner Dominant Class ---------------- Mutant | -10/Materials Mutant | -10/Subcaves Mutant | -7/Scraptown Scavenger-Gunner | -5/Factory Scavenger-Gunner | -5/Extension Scavenger-Gunner | -5/Cetus Scavenger-Gunner | -5/Archives Scavenger-Gunner | -5/Hub_04(d) Scavenger-Gunner | -4/Factory Resources | -11 -10 -10 -7 -5 -5 -5 -5 -5 -4 ----------- Run | Yrd Mat Sub Scr Fac Ext Cet Arc Hub Fac Matter Collected 14265 | 383 1464 481 304 4667 1978 344 573 1938 2133 Remotely 1451 | . . . . 1286 . . . . 165 Salvage Created 12866 | 192 1216 164 . 3712 2616 240 710 2082 1934 Parts 581 | 19 52 9 . 154 109 12 39 82 105 Haulers Intercepted 8 | . 2 . . 1 . . . 4 1 Recyclers Shooed 11 | 1 . . . 8 1 . . . 1 Parts Field Recycled . | . . . . . . . . . . Retrieved Matter . | . . . . . . . . . . Parts Self-Destructed 10 | . . 10 . . . . . . . Prevented . | . . . . . . . . . . Parts Restored . | . . . . . . . . . . Kills | -11 -10 -10 -7 -5 -5 -5 -5 -5 -4 ------- Run | Yrd Mat Sub Scr Fac Ext Cet Arc Hub Fac Combat Hostiles Destroyed 166 | . 16 8 . 55 33 3 4 17 30 Melee 1 | . . . . 1 . . . . . Guns 105 | . 5 . . 31 24 3 4 17 21 Cannons 30 | . 8 6 . 10 5 . . . 1 AOE 30 | . 3 2 . 13 4 . . . 8 Classes Destroyed 21 | 3 4 2 . 10 2 . . . . Worker 17 | 2 4 . . 4 2 . . 3 2 Builder 10 | . . . . 2 4 . . 3 1 Tunneler 6 | 4 1 . . . . . . 1 . Hauler 8 | . 2 . . 1 . . . 4 1 Recycler 28 | 1 8 . . 7 7 . . 3 2 Mechanic 5 | . . . . 3 1 . . . 1 Operator 12 | . . . . . 1 . 9 1 1 Watcher 9 | . 1 . . 1 . 1 . 2 4 Swarmer 23 | . 3 . . 6 4 . . 2 8 Saboteur 2 | . . . . 1 1 . . . . Grunt 64 | . 13 . . 28 17 . . 6 . Brawler 2 | . . . . 1 1 . . . . Duelist 6 | . . . . 3 2 . . . 1 Protector 1 | . . . . 1 . . . . . Sentry 18 | . . . . 4 4 . 4 2 4 Specialist 1 | . . . . 1 . . . . . Hunter 14 | . . . . 4 2 . . 4 4 Programmer 21 | . . . . 6 . . . 2 13 Behemoth 3 | . . . . . 2 . . 1 . Cetus Guard 3 | . . . . . . 3 . . . Artisan 1 | . . 1 . . . . . . . Subdweller 8 | . . 8 . . . . . . . Butcher 1 | . . . . . 1 . . . . Best Kill Streak 14 | 3 5 2 . 14 8 2 5 9 5 Combat Bots Only 12 | . 5 2 . 12 6 2 4 5 4 Max Kills in Single Turn 3 | 1 3 1 . 3 3 1 1 2 3 Gunslinging 1 | . . . . 1 1 . . . . Exploded 3 | . 3 1 . 3 1 . . . 3 Melee 1 | . . . . 1 . . . . . Uniques/NPCs Destroyed . | . . . . . . . . . . Combat | -11 -10 -10 -7 -5 -5 -5 -5 -5 -4 -------- Run | Yrd Mat Sub Scr Fac Ext Cet Arc Hub Fac Hostile Shots Fired 1153 | . 54 50 . 346 156 32 22 151 342 Missed 372 | . 15 13 . 118 47 9 5 41 124 Hits 781 | . 39 37 . 228 109 23 17 110 218 Melee 9 | . . . . 4 . . . . 5 Projectile 772 | . 39 37 . 224 109 23 17 110 213 AOE 1 | . . . . . . . . . 1 Critical Strikes 42 | . 2 . . 7 10 3 . 3 17 Actively Blocked 2 | . . . . . . . . . 2 Damage Taken 15309 | . 502 797 . 4227 2184 584 458 2246 4311 Core 2375 | . 92 142 . 194 294 96 79 300 1178 Absorbed by Shields . | . . . . . . . . . . Redirected to Shielding 157 | . . . . . . . 55 . 102 Ignored by Resistances 398 | . . . . . 232 . . . 166 Regen/Repaired (Parts) 324 | . 18 . . 37 111 . . . 158 Core Remaining (%) 36 | 100 . . 6 . . . . 3 . Volleys Fired 588 | 16 64 54 2 161 90 15 33 68 85 Largest 4 | 2 2 2 1 4 4 4 4 4 4 Hottest 148 | 40 60 60 . 146 148 134 140 140 145 Shots Fired 1793 | 32 127 101 2 532 289 59 127 260 264 Gun 1455 | 32 64 . . 419 262 59 127 260 232 Cannon 281 | . 62 82 . 97 21 . . . 19 Launcher 53 | . 1 19 . 14 6 . . . 13 Special 4 | . . . 2 2 . . . . . Kinetic 1704 | 32 126 80 . 497 272 59 127 260 251 Thermal 13 | . . 2 . . 11 . . . . Explosive 53 | . 1 19 . 14 6 . . . 13 Electromagnetic 19 | . . . . 19 . . . . . Robot Hit Streak 28 | 6 13 16 18 19 15 8 15 28 19 Robot Miss Streak 7 | 3 4 4 . 7 5 3 4 3 4 Penetration Max 2 | . . . . 1 1 1 . 2 1 Secondary Targets 21 | . 1 . . 7 7 . . 5 1 Max Gunslinging Chain 1 | . 1 . . 1 1 . . 1 1 Shots Hit Robots 1122 | 21 79 47 2 332 180 36 76 187 162 Core Hits 609 | 8 41 16 . 227 109 19 37 72 80 Critical Kills 42 | . . . . 12 2 2 2 16 8 Critical Parts Destroyed 45 | 1 . . . 7 3 . 2 26 6 Critical Strikes 108 | 1 2 2 . 23 10 2 6 45 17 Burn 2 | . . . . . 2 . . . . Destroy 91 | 1 . . . 18 5 2 6 45 14 Blast 14 | . 2 2 . 4 3 . . . 3 Smash 1 | . . . . 1 . . . . . Melee Attacks 3 | . . . . 1 . . . . 2 Impact 1 | . . . . 1 . . . . . Slashing . | . . . . . . . . . . Piercing 2 | . . . . . . . . . 2 Sneak Attacks . | . . . . . . . . . . Combat Hostiles . | . . . . . . . . . . Follow-up Attacks . | . . . . . . . . . . Damage Inflicted 30941 | 273 1292 1261 . 9883 5803 969 1900 3818 5742 Guns 20916 | 273 570 . . 5836 4242 969 1900 3818 3308 Cannons 3664 | . 607 631 . 1604 422 . . . 400 Explosions 6261 | . 115 630 . 2381 1115 . . . 2020 Melee 61 | . . . . 61 . . . . . Ramming 39 | . . . . 1 24 . . . 14 Kinetic 24103 | 273 1177 631 . 7085 4542 969 1900 3818 3708 Thermal 641 | . . . . 94 122 . . . 425 Explosive 5742 | . 115 630 . 2287 1115 . . . 1595 Electromagnetic 355 | . . . . 355 . . . . . Impact 61 | . . . . 61 . . . . . Slashing . | . . . . . . . . . . Piercing . | . . . . . . . . . . Highest Corruption 14 | . . . . 14 14 14 14 . 8 Average Corruption 10 | . . . . 10 13 14 11 . 3 Corruption Purged 20 | . . . . 6 . . 14 . . Corruption Blocked . | . . . . . . . . . . Effects 202 | . . . . 64 85 13 19 . 21 Message Errors 46 | . . . . 15 16 2 7 . 6 Matter Fused 44 | . . . . 14 17 3 2 . 8 Heat Flow Errors 21 | . . . . 5 11 2 2 . 1 Energy Discharges 28 | . . . . 11 12 3 . . 2 Parts Rejected 4 | . . . . 3 1 . . . . Parts Fused 1 | . . . . . 1 . . . . Data Loss (minor) 20 | . . . . 8 10 1 . . 1 Data Loss (major) 10 | . . . . 3 4 1 1 . 1 Misfires 7 | . . . . . 4 . 1 . 2 Misdirections 2 | . . . . 1 1 . . . . Weapon Failures 19 | . . . . 4 8 1 6 . . Overload Shots . | . . . . . . . . . . Overflow Damage 314 | . 14 . . 51 21 . . . 228 Projectiles 54 | . 14 . . 8 . . . . 32 Explosions 260 | . . . . 43 21 . . . 196 Melee . | . . . . . . . . . . Knockbacks 46 | . 2 7 . 25 1 . . . 11 Impact . | . . . . . . . . . . Kinetic 41 | . 2 7 . 23 1 . . . 8 Secondary 5 | . . . . 2 . . . . 3 Self-Inflicted Damage 32 | . . . . . . . . . 32 Shots 1 | . . . . . . . . . 1 Rammed 4 | . . . . . 2 . . . 2 Targets Rammed 5 | . . . . 1 2 . . . 2 Kicked . | . . . . . . . . . . Crushed 1 | . . . . 1 . . . . . Highest Temperature 535 | . 28 . . 251 418 277 535 409 314 Average Temperature 86 | . 10 . . 61 109 109 165 98 46 Received Heat Transfer 3331 | . 306 198 . 939 618 27 63 630 550 Effects 24 | . . . . . 9 . 6 8 1 Energy Bleed 7 | . . . . . 2 . 2 3 . Interference 11 | . . . . . 6 . 2 3 . Matter Decay 3 | . . . . . 1 . 1 . 1 Short Circuit 1 | . . . . . . . . 1 . Damage (minor) 2 | . . . . . . . 1 1 . Siege Activations . | . . . . . . . . . . Martial Activations . | . . . . . . . . . . Shielding Activations . | . . . . . . . . . . Robots Disrupted . | . . . . . . . . . . Combat Hostiles . | . . . . . . . . . . Robots Corrupted . | . . . . . . . . . . Combat Hostiles . | . . . . . . . . . . Parts Fried 3 | . . . . 2 1 . . . . Impact Corruptions . | . . . . . . . . . . Robots Melted . | . . . . . . . . . . Combat Hostiles . | . . . . . . . . . . Parts Melted 1 | . . . . 1 . . . . . Heat Transferred 657 | . . . . 50 407 . . . 200 Parts Sabotaged . | . . . . . . . . . . Parts Stolen . | . . . . . . . . . . Parts Stripped . | . . . . . . . . . . Power Chain Reactions . | . . . . . . . . . . Alert | -11 -10 -10 -7 -5 -5 -5 -5 -5 -4 ------- Run | Yrd Mat Sub Scr Fac Ext Cet Arc Hub Fac Maximum Alert Level 5 | . 1 . . 5 5 4 2 1 3 Low Security (%) 42 | 100 98 . . 7 . . . 98 41 Level 1 5 | . 1 . . 4 . . . 1 20 Level 2 13 | . . . . 10 . . 100 . 34 Level 3 7 | . . . . 26 . 21 . . 3 Level 4 25 | . . . . 31 90 78 . . . Level 5 3 | . . . . 8 8 . . . . High Security 2 | . . . . 10 . . . . . Max Security . | . . . . . . . . . . Peak Influence 2091 | 10 209 . . 2091 1961 1192 538 209 748 Initial 1100 | . . . . . 1100 1100 435 142 87 Average 607 | 1 57 . . 1085 1327 1135 487 99 281 Influence Increases 8350 | 35 650 . . 3131 1751 199 262 634 1688 Destroy 0b10 Robot/C 4220 | . 320 . . 1740 1000 140 80 340 600 Destroy 0b10 Robot/NC 515 | 35 80 . . 125 80 5 45 85 60 Destroy Leader 788 | . 86 . . 302 120 . . 100 180 Allied During Kill 413 | . . . . 218 169 26 . . . Successful Hack 393 | . 46 . . 93 119 12 . 25 98 Select Force Hacks 90 | . 60 . . . . . . . 30 Disable Machine 495 | . 30 . . 180 30 . 105 30 120 Anti-Garrison Action 150 | . . . . 150 . . . . . Destroy Structure 671 | . 13 . . 278 98 16 32 54 180 Partial Spotted 45 | . 15 . . 15 . . . . 15 Lose Combat Pursuer 570 | . . . . 30 135 . . . 405 Influence Decreases 7702 | 35 606 44 . 1050 1952 1074 942 864 1135 Entered New Map 2961 | . . 22 . . 1062 864 654 267 92 Time Decay 2979 | 35 440 22 . 600 580 140 238 341 583 Lost Part 930 | . 10 . . 220 130 10 50 150 360 Lost Ally 420 | . . . . 80 180 60 . . 100 Purge Threat 412 | . 156 . . 150 . . . 106 . Squads Dispatched 71 | . 5 . . 30 7 . . 8 21 Investigation 21 | . 5 . . 6 2 . . . 8 Extermination 11 | . . . . 3 . . . 1 7 Reinforcement 16 | . . . . 7 2 . . 3 4 Assault 17 | . . . . 12 3 . . . 2 Garrison 6 | . . . . 2 . . . 4 . Intercept . | . . . . . . . . . . Searches Triggered . | . . . . . . . . . . Construction Impeded 6 | . . . . 4 1 . . 1 . Haulers Reinforced 3 | . . . . 1 . . . 2 . Active Scanning Responses . | . . . . . . . . . . Cargo Convoy Interrupts . | . . . . . . . . . . Stealth | -11 -10 -10 -7 -5 -5 -5 -5 -5 -4 --------- Run | Yrd Mat Sub Scr Fac Ext Cet Arc Hub Fac Distress Signals 13 | . . . . 2 3 2 . 3 3 Communications Jammed . | . . . . . . . . . . Distress Signals . | . . . . . . . . . . Times Spotted 344 | . 16 9 . 117 61 9 19 26 87 Peak Tracking Total 18 | . 4 2 . 6 7 5 1 4 18 Tactical Retreats 19 | . . . . 2 6 . . . 11 Traps | -11 -10 -10 -7 -5 -5 -5 -5 -5 -4 ------- Run | Yrd Mat Sub Scr Fac Ext Cet Arc Hub Fac Traps Triggered 6 | . 1 . . . 1 . . . 4 Indirectly . | . . . . . . . . . . Trap Hack Attempts . | . . . . . . . . . . Triggered . | . . . . . . . . . . Disarmed . | . . . . . . . . . . Reprogrammed 4 | . . . . . 4 . . . . Reused . | . . . . . . . . . . Traps Extracted . | . . . . . . . . . . Installed 1 | . . . . 1 . . . . . Triggered . | . . . . . . . . . . Most Traps Carried 1 | . . . 1 1 . . . . . Machines | -11 -10 -10 -7 -5 -5 -5 -5 -5 -4 ---------- Run | Yrd Mat Sub Scr Fac Ext Cet Arc Hub Fac Machines Disabled 35 | . 2 1 . 13 2 . 7 2 8 Max in Single Turn 4 | . 1 1 . 2 1 . 2 1 4 Garrison Access 1 | . . . . 1 . . . . . Machines Repaired . | . . . . . . . . . . Machines Dismantled . | . . . . . . . . . . Machines Sabotaged . | . . . . . . . . . . Overloaded Fab Kills . | . . . . . . . . . . Hacking | -11 -10 -10 -7 -5 -5 -5 -5 -5 -4 --------- Run | Yrd Mat Sub Scr Fac Ext Cet Arc Hub Fac Machines Accessed 77 | . 11 . 5 16 20 2 . 5 18 Terminals 45 | . 8 . . 5 17 2 . 4 9 Fabricators 4 | . . . . 3 . . . . 1 Repair Stations 6 | . 1 . . 2 1 . . . 2 Recycling Units 14 | . 2 . . 6 2 . . . 4 Scanalyzers 2 | . . . . . . . . . 2 Garrison Access 1 | . . . . . . . . 1 . Total Hacks 266 | . 39 . 24 39 73 6 . 22 63 Successful 168 | . 24 . 24 26 37 3 . 12 42 Failed 97 | . 15 . . 13 36 3 . 10 20 Catastrophic 8 | . 3 . . 1 2 1 . 1 . Database Lockouts 1 | . . . . . . . . . 1 Manual 154 | . 35 . . 32 37 . . 10 40 Terminals 174 | . 34 . . 17 60 6 . 20 37 Fabricators 14 | . . . . 8 . . . . 6 Repair Stations 15 | . 3 . . 6 4 . . . 2 Recycling Units 29 | . 2 . . 8 9 . . . 10 Scanalyzers 8 | . . . . . . . . . 8 Garrison Access 2 | . . . . . . . . 2 . Terminal Hacks 59 | . 6 . 24 1 13 3 . 5 7 Record 26 | . . . 23 . . 3 . . . Robot Analysis 9 | . 4 . . . 4 . . . 1 Prototype ID Bank 5 | . . . . . . . . 2 3 Open Door 6 | . . . . . 6 . . . . Branch Access Points 1 | . . . . . . . . . 1 Terminal Index 1 | . . . . . . . . . 1 Unreport Threat 6 | . 2 . . 1 . . . 3 . Reprogram Traps 2 | . . . . . 2 . . . . Recall Investigation 1 | . . . . . 1 . . . . Registered Prototypes 1 | . . . . . . . . . 1 Proto ID Catalog 1 | . . . 1 . . . . . . Fabricator Hacks 2 | . . . . . . . . . 2 Network Status 1 | . . . . . . . . . 1 Build 1 | . . . . . . . . . 1 Repair Station Hacks 8 | . 2 . . 2 4 . . . . Scan Component 4 | . 1 . . 1 2 . . . . Repair 4 | . 1 . . 1 2 . . . . Recycling Unit Hacks 1 | . . . . . 1 . . . . Retrieve Components 1 | . . . . . 1 . . . . Scanalyzer 4 | . . . . . . . . . 4 Insert Component 1 | . . . . . . . . . 1 Analyze 1 | . . . . . . . . . 1 Retrieve Study 2 | . . . . . . . . . 2 Garrison Access Hacks 1 | . . . . . . . . 1 . Unlock Access 1 | . . . . . . . . 1 . Unauthorized Hacks 93 | . 16 . . 23 19 . . 6 29 Terminals 58 | . 13 . . 12 14 . . 6 13 Track 4 | . 1 . . 1 1 . . . 1 Botnet 29 | . 5 . . 4 9 . . 4 7 Disrupt 7 | . . . . . 3 . . 2 2 Operators 5 | . 1 . . 2 1 . . . 1 Skim 13 | . 6 . . 5 . . . . 2 Fabricators 7 | . . . . 3 . . . . 4 Report 1 | . . . . . . . . . 1 Prioritize 1 | . . . . . . . . . 1 Liberate 4 | . . . . 3 . . . . 1 Haulers 1 | . . . . . . . . . 1 Repair Stations 4 | . 1 . . 1 . . . . 2 Mechanics 2 | . 1 . . 1 . . . . . Patch 2 | . . . . . . . . . 2 Recycling Units 23 | . 2 . . 7 5 . . . 9 Reject 4 | . . . . . 2 . . . 2 Recyclers 4 | . . . . 1 1 . . . 2 Mask 3 | . . . . . 2 . . . 1 Tunnel 2 | . 2 . . . . . . . . Fedlink 10 | . . . . 6 . . . . 4 Scanalyzers 1 | . . . . . . . . . 1 Extract 1 | . . . . . . . . . 1 Garrison Access . | . . . . . . . . . . Data Cores Recovered . | . . . . . . . . . . Used . | . . . . . . . . . . Hacking Detections 57 | . 9 . . 11 16 2 . 5 14 Full Trace Events 5 | . 2 . . . 2 . . . 1 Feedback Events . | . . . . . . . . . . Feedback Blocked . | . . . . . . . . . . Robot Schematics Acquired . | . . . . . . . . . . Robots Built 3 | . . . . . . . . . 3 Authchips . | . . . . . . . . . . Time 187 | . . . . . . . . . 187 Total Robot Build Rating 21 | . . . . . . . . . 21 Part Schematics Acquired 4 | . . . . . . . . . 4 Parts Built . | . . . . . . . . . . Authchips . | . . . . . . . . . . Time . | . . . . . . . . . . Total Part Build Rating . | . . . . . . . . . . Part Studies Acquired 2 | . . . . . . . . . 2 Parts Repaired 3 | . 1 . . 1 1 . . . . Time 194 | . 26 . . 56 112 . . . . Parts Recycled . | . . . . . . . . . . Recycled Matter . | . . . . . . . . . . Retrieved Matter . | . . . . . . . . . . Retrieved Components 3 | . . . . . 3 . . . . Parts Scanalyzed 1 | . . . . . . . . . 1 Part Schematics Acquired 1 | . . . . . . . . . 1 Parts Damaged . | . . . . . . . . . . Bothacking | -11 -10 -10 -7 -5 -5 -5 -5 -5 -4 ------------ Run | Yrd Mat Sub Scr Fac Ext Cet Arc Hub Fac Used RIF Installer . | . . . . . . . . . . Robots Hacked . | . . . . . . . . . . Non-combat . | . . . . . . . . . . Combat . | . . . . . . . . . . Robot Hacks Applied . | . . . . . . . . . . Relay Couplers Released 1 | . . . . 1 . . . . . Machine Destruction 1 | . . . . 1 . . . . . Fabnet Peak Effective % . | . . . . . . . . . . Robots Rewired 5 | . . . . 1 3 . . . 1 Allies Hacked . | . . . . . . . . . . Hacks Repelled . | . . . . . . . . . . Allies | -11 -10 -10 -7 -5 -5 -5 -5 -5 -4 -------- Run | Yrd Mat Sub Scr Fac Ext Cet Arc Hub Fac Total Allies 23 | . . . 1 4 13 . . . 5 Largest Group 6 | . . . 1 2 6 3 . . 3 Highest-Rated Group 147 | . . . 80 98 147 90 . . 141 Highest-Rated Ally 92 | . . . 80 92 39 39 . . 47 Initial UFD Resources 62 | . . . . 37 59 59 59 59 62 Total Orders . | . . . . . . . . . . Ally Attacks 267 | . . . . 156 81 17 . . 13 Total Damage 7218 | . . . . 4963 1698 285 . . 272 Kills 61 | . . . . 39 18 4 . . . Allies Corrupted . | . . . . . . . . . . Allies Melted 1 | . . . . 1 . . . . . Intel | -11 -10 -10 -7 -5 -5 -5 -5 -5 -4 ------- Run | Yrd Mat Sub Scr Fac Ext Cet Arc Hub Fac Active Infowar (turns) 5173 | 158 2398 1923 . 694 . . . . . Optics 381 | . . . . 381 . . . . . Terrain 4479 | 158 2398 1923 . . . . . . . Traps 61 | . . . . 61 . . . . . Decoding 462 | . . . . 462 . . . . . Robot Analysis Total 9 | . 4 . . . 4 . . . 1 Derelict Logs Recovered 4 | . . 1 3 . . . . . . Drone Launches . | . . . . . . . . . . Drone Recoveries . | . . . . . . . . . . Decoded 0b10 Intel 30 | . . . . 30 . . . . . Items 30 | . . . . 30 . . . . . Exploration | -11 -10 -10 -7 -5 -5 -5 -5 -5 -4 ------------- Run | Yrd Mat Sub Scr Fac Ext Cet Arc Hub Fac Turns Passed 15368 | 203 2398 2301 2982 2235 1798 295 504 840 1812 Spaces Moved 10588 | 91 1225 1309 1776 1795 1651 178 153 434 1976 Core 155 | 3 . . . . . . . . 152 Treads 5317 | 88 1225 1309 1776 552 339 28 . . . Legs . | . . . . . . . . . . Wheels . | . . . . . . . . . . Hover 5116 | . . . . 1243 1312 150 153 434 1824 Flight . | . . . . . . . . . . Fastest Speed 31 | 50 160 160 152 40 43 95 95 96 31 Average Speed 110 | 156 160 160 163 80 70 105 99 109 60 Slowest Speed 240 | 160 160 165 170 176 240 160 153 161 150 Overloaded Moves . | . . . . . . . . . . Propulsion Burnouts . | . . . . . . . . . . Robots Hopped . | . . . . . . . . . . Potential Cave-ins . | . . . . . . . . . . Cave-ins Triggered . | . . . . . . . . . . Exploration Rate (%) 55 | 4 97 41 82 31 84 64 85 28 40 Regions Visited 9 Branch Regions 6 Pre-discovered Areas 7 | . 6 . . 1 . . . . . Known Exits Taken 2 | . . . . 1 . . . 1 . Unknown Exits Taken 7 | 1 1 1 1 . 1 1 1 . . Scrap Searched 6 | . . . 6 . . . . . . Spaces Dug 11 | . . . . 4 . . . . 7 Terrain Destroyed 404 | . 8 45 . 103 66 6 22 25 129 Melee 2 | . . . . . . . . . 2 Projectile 107 | . . . . 9 28 6 21 21 22 AOE 289 | . 8 45 . 94 38 . . . 104 Terrain Rammed . | . . . . . . . . . . Walls Destroyed . | . . . . . . . . . . Machines Disabled . | . . . . . . . . . . Actions | -11 -10 -10 -7 -5 -5 -5 -5 -5 -4 --------- Run | Yrd Mat Sub Scr Fac Ext Cet Arc Hub Fac Total 12959 | 116 1549 1408 1868 2255 2074 250 419 624 2396 Wait 923 | . 206 11 15 37 226 31 203 38 156 Move 10579 | 90 1224 1308 1775 1794 1650 177 152 433 1976 Hop . | . . . . . . . . . . Pick Up 205 | 3 25 7 31 62 18 7 8 16 28 Fast Attach 117 | 7 1 2 5 49 12 3 7 15 16 Attach 86 | . 1 4 2 20 13 2 3 14 27 Detach 41 | . . . 3 13 5 2 1 7 10 Swap 206 | . 10 14 4 52 32 4 5 21 64 Drop 181 | . 18 8 31 55 13 9 7 12 28 Fire 588 | 16 64 54 2 161 90 15 33 68 85 Melee 3 | . . . . 1 . . . . 2 Ram 2 | . . . . . . . . . 2 Kick . | . . . . . . . . . . Crush 3 | . . . . 1 2 . . . . Escape Stasis . | . . . . . . . . . . Rewire 23 | . . . . 8 13 . . . 2 Trap 1 | . . . . 1 . . . . . Miscellaneous 1 | . . . . 1 . . . . . Route ------- -11/Scrapyard -10/Materials (discovered 5 exits: [*Mat x3] / [*Min] / [*Sub]) -10/Subcaves -7/Scraptown (discovered 2 exits: *Fac x2) -5/Factory (discovered 3 exits: *Fac / *Upp / *Ext) -5/Extension (discovered 2 exits: *Fac / *Cet) -5/Cetus -5/Archives (discovered 3 exits: *Fac / *Hub x2) -5/Hub_04(d) (discovered 2 exits: *Fac / Gar) -4/Factory (discovered 3 exits: [*Res] / *Upp x2) History --------- Turn | Location | Event 63 | -11/Scrapyard | Discovered new exit (range 13) 204 | -11/Scrapyard | Entered Materials 205 | -10/Materials | Met a group of wandering Federalists 300 | -10/Materials | Build established: Mutant 350 | -10/Materials | Discovered new exit (range 7) 404 | -10/Materials | Discovered new exit (range 8) 470 | -10/Materials | Discovered new exit (range 4) 880 | -10/Materials | Discovered new exit (range 15) 1170 | -10/Materials | Discovered new exit (range 16) 2056 | -10/Materials | Learned 4 Recycling zone layouts 2134 | -10/Materials | Learned location of Mines (-10) 2204 | -10/Materials | Learned 4 Recycling zone layouts 2262 | -10/Materials | Loaded intel: 7 trap records 2374 | -10/Materials | Learned 4 Subcaves zone layouts 2433 | -10/Materials | Repaired Lgt. Cannon 2593 | -10/Materials | Learned location of Storage (-7) 2602 | -10/Materials | Entered Subcaves 2603 | -10/Subcaves | Continued accompanying wandering Federalists (5) 2838 | -10/Subcaves | Wandering Federalist uncovered a shortcut to Scraptown 3352 | -10/Subcaves | Core integrity fell below 50% 3405 | -10/Subcaves | Learned 4 Materials zone layouts 3796 | -10/Subcaves | Lost 3 parts (1n2w) 3821 | -10/Subcaves | Core integrity fell below 20% 4500 | -10/Subcaves | Visited 4L-MR0's lab 4521 | -10/Subcaves | Found Prototype Leg 4525 | -10/Subcaves | Found Prototype Device 4525 | -10/Subcaves | Identified Sfc. Transmogrifier 4903 | -10/Subcaves | Entered Scraptown 5035 | -7/Scraptown | Scanned Subdweller tech in exchange for log data 5040 | -7/Scraptown | Learned location of 1 exit from Factory 5132 | -7/Scraptown | Visited UFD Registry 5132 | -7/Scraptown | Registered with UFD as "Microframe" 5155 | -7/Scraptown | Visited Cyclists 5171 | -7/Scraptown | Entered Cyclist Reading Room 5747 | -7/Scraptown | Discovered new exit (range 11) 5797 | -7/Scraptown | Visited CR-KLE's Repair Center 5917 | -7/Scraptown | Visited LU-1G1's Boring Crew 5993 | -7/Scraptown | Visited Junk Cannon Lab 6003 | -7/Scraptown | Found Prototype Special Weapon 6003 | -7/Scraptown | Identified Junk Cannon 6038 | -7/Scraptown | Visited Science Guys 6204 | -7/Scraptown | Visited Infowarlord's Domain 6244 | -7/Scraptown | Visited DA-N13 Charitable Foundation 6259 | -7/Scraptown | Found DCF Scrap (30 items) 6323 | -7/Scraptown | Visited Modified Component R&D 6401 | -7/Scraptown | Visited Abandonware Association 6418 | -7/Scraptown | Learned abandonware demo "MELTYB.EXE" 6459 | -7/Scraptown | Visited Botcube Research 6480 | -7/Scraptown | Found Botcube 6575 | -7/Scraptown | Found Scrap Suit 7410 | -7/Scraptown | Botcube activated 7430 | -7/Scraptown | Botcube completed mutation into legged form, armed with 2 guns 7621 | -7/Scraptown | Attached CPS modules to Mutated Botcube 7623 | -7/Scraptown | Attached CPS modules to Mutated Botcube 7795 | -7/Scraptown | Met Optimus 7795 | -7/Scraptown | Accepted into 0bPrime 7876 | -7/Scraptown | Discovered new exit (range 5) 7885 | -7/Scraptown | Entered Factory 7885 | -5/Factory | Accompanied by 1 ally 7885 | -5/Factory | Evolved 10 slots: Propulsion x4, Utility x4, Weapon x2 7886 | -5/Factory | Identified exit to Extension 7887 | -5/Factory | Identified exit to Upper Caves 8054 | -5/Factory | Garrison activated, responded to threat 8185 | -5/Factory | First assault squad dispatched 8385 | -5/Factory | Lost 3 parts (3u) 8458 | -5/Factory | Found Botcube 8472 | -5/Factory | Destroyed 12 combat bots 8482 | -5/Factory | Lost 6 parts (1n2u3w) 8516 | -5/Factory | Attached CPS modules to P-70 Sage 8517 | -5/Factory | System corruption reached 10% 8706 | -5/Factory | Found Prototype Launcher 8765 | -5/Factory | Botcube activated 8767 | -5/Factory | Attached CPS modules to Mutated Botcube 8789 | -5/Factory | Botcube completed mutation into legged form, armed with 1 gun, 1 cannon 8813 | -5/Factory | Lost 4 parts (1n2u1w) 8933 | -5/Factory | Identified Mni. Smartbomb Launcher 8964 | -5/Factory | Build established: Scavenger-Gunner 9287 | -5/Factory | Loaded intel: 8 recycling unit locations 9415 | -5/Factory | Learned location of Protoforge (-2) 9528 | -5/Factory | Repaired Antigrav System 9684 | -5/Factory | Discovered new exit (range 15) 9738 | -5/Factory | Identified exit to Factory 9884 | -5/Factory | High security lockdown imminent 9964 | -5/Factory | High security lockdown engaged 10071 | -5/Factory | Found Botcube 10120 | -5/Factory | Entered Extension 10148 | -5/Extension | Rescued a captive Derelict 10149 | -5/Extension | Rescued a captive Derelict 10296 | -5/Extension | Rescued a captive Derelict 10420 | -5/Extension | First assault squad dispatched 10500 | -5/Extension | Repaired KE Penetrator 10788 | -5/Extension | Spotted B-75 Beast 10819 | -5/Extension | Destroyed B-75 Beast 11071 | -5/Extension | Spotted B-75 Beast 11145 | -5/Extension | Disrupted transfer network 11198 | -5/Extension | Lost 4 parts (2n2w) 11306 | -5/Extension | Destroyed B-75 Beast 11589 | -5/Extension | Rescued a captive Derelict 11589 | -5/Extension | Rescued a captive Derelict 11640 | -5/Extension | Rescued a captive Derelict 11641 | -5/Extension | Rescued a captive Derelict 11764 | -5/Extension | Rescued a captive Derelict 11817 | -5/Extension | Rescued a captive Derelict 11818 | -5/Extension | Rescued a captive Derelict 11891 | -5/Extension | Discovered exit to Factory (range 10) 11892 | -5/Extension | Discovered new exit (range 6) 11895 | -5/Extension | Disrupted transfer network 11901 | -5/Extension | High security lockdown imminent 11918 | -5/Extension | Entered Cetus 11918 | -5/Cetus | Accompanied by 3 allies 11938 | -5/Cetus | Spotted Cetus Guard 11939 | -5/Cetus | Spotted Cetus Guard 11943 | -5/Cetus | Spotted Cetus Guard 11944 | -5/Cetus | Allies destroyed Cetus Guard 11944 | -5/Cetus | Spotted Cetus Guard 11947 | -5/Cetus | Allies destroyed Cetus Guard 11949 | -5/Cetus | Allies destroyed Cetus Guard 11957 | -5/Cetus | Destroyed Cetus Guard 12074 | -5/Cetus | Discovered new exit (range 16) 12091 | -5/Cetus | Spotted Cetus Guard 12091 | -5/Cetus | Spotted Cetus Guard 12103 | -5/Cetus | Core integrity fell below 50% 12104 | -5/Cetus | Spotted Cetus Guard 12104 | -5/Cetus | Spotted Cetus Guard 12161 | -5/Cetus | Destroyed Cetus Guard 12176 | -5/Cetus | Destroyed Cetus Guard 12213 | -5/Cetus | Entered Archives 12324 | -5/Archives | Lost 5 parts (4n1u) 12344 | -5/Archives | Discovered new exit (range 15) 12412 | -5/Archives | Discovered new exit (range 15) 12435 | -5/Archives | Discovered exit to Factory (range 15) 12717 | -5/Archives | Entered Hub_04(d) 12825 | -5/Hub_04(d) | Spotted B-75 Beast 12845 | -5/Hub_04(d) | Identified exit to Garrison 12924 | -5/Hub_04(d) | Core integrity fell below 20% 12947 | -5/Hub_04(d) | Destroyed B-75 Beast 12969 | -5/Hub_04(d) | Lost 8 parts (4n1u3w) 13011 | -5/Hub_04(d) | Watched by a mysterious "MATRIX" hacker 13130 | -5/Hub_04(d) | Garrison activated, responded to threat 13236 | -5/Hub_04(d) | Garrison activated, responded to threat 13286 | -5/Hub_04(d) | Lost 3 parts (1n2w) 13376 | -5/Hub_04(d) | Discovered exit to Factory (range 6) 13557 | -5/Hub_04(d) | Entered Factory 13557 | -4/Factory | Evolved 2 slots: Power x1, Propulsion x1 13752 | -4/Factory | Central database locked down 13767 | -4/Factory | Identified exit to Upper Caves 13787 | -4/Factory | Discovered new exit (range 14) 14170 | -4/Factory | Loaded intel: 8 recycling unit locations 15085 | -4/Factory | Fabricated G-67 Veteran (x3) 15273 | -4/Factory | Botcube activated 15278 | -4/Factory | Core integrity fell below 50% 15281 | -4/Factory | Botcube completed mutation into core form, armed with 1 cannon 15288 | -4/Factory | Spotted B-86 Titan 15296 | -4/Factory | Spotted B-86 Titan 15302 | -4/Factory | Core integrity fell below 20% 15307 | -4/Factory | First assault squad dispatched 15336 | -4/Factory | Lost 19 parts (3p7n4u5w) 15369 | -4/Factory | Destroyed by C-35 Carver with Carbide Saw Last Messages --------------- 15309_ System corrupted: Matter fused (-7). 15311_ ALERT: Suspicious intruders detected, dispatching Cutter reinforcements to area. 15320_ Connecting with Terminal... >>Prototypes Downloading prototype IDs... Cld. Phase Gun Exp. Cooling System 15320_ ALERT: Suspicious activity at Terminal F006. Dispatching Investigation squad. 15338_ Acquired Com. Matter Pod. 15340_ ALERT: Potential suspicious activity detected, Programmers report to Factory Zone 2G. 15340_ Acquired Com. Matter Pod. 15342_ Acquired Lrg. Storage Unit. 15347_ Slug penetrates Wall. 15352_ Imp. Antigrav System destroyed. 15356_ System corrupted: Heat flow error (+151). 15358_ Slug penetrates Wall. 15369_ Slammed into C-35 Carver. Map ----- +----------------------------------------------------+ | ???????????????????????# ########+########### | | ???????????????????????# # | | ???????????????????????# + | | ???????????????????????# # | | ???????????????????????# ### #########+#### | | ???????????????????????# #?# # #?? | | ???????????????????????# #?# # "" #?? | | ???????????????????????# #?# # "T # | | ???????????????????????# #?# # "" # | | ???????????????????????# #?# # """ # | | ???????????????????????########?# # """ # | | ?????????????????????#? ????????# # """ # | | ??????????????????????; ????????+ + # | | ??????????????????????; """?????# # """ """ # | | ??????????????????????B ""??????# # """ """ # | | ??????????????????????B ??????# # """ """ # | | ??????????????????????# ??????# # # | | ??????????????????????# ??????# ###########??# | | ??????????????????????# ??????# #????????????# | | ??????????????????????#;"#??????# #????????????# | | ??????????????????????#; #??????# #????######### | | ??????????????#???????#; #??????# #????# # " | | ??????????????# ??????#; #??????# #????## " | | ??????????????# #######; ######## ###### " | | ??????????????# c # | | ??????????????# @######### % | | ???????????#+## cc#???????# | | ???????????# c#???????# | | ???????????# #???????# | | | ???????????# %%" """% #???????# ]!| | | ?????????# g %%% Y" #????#### !% | | ?????????# """ " " #?? ] ## ] | | ?????????### """ g# #####/#!" ""# | | ????????? hh/ #???# # """"""""# | | ???????? """ """ #???# ### # | | ????????? """ !! # """ #??## ### " " # | | ??????????? """ ! """ #?##" "## """" # | | ??????????? """ ! ###??## # """" # | | ?????????? #####" # """" # | | ?????????? + """" # | | ?????????? # ! ##% # ""?? # | | ??????????? ? ## """ #* ??? # | | ??????????? ? #?##" !! #####???## | | ???????????? ######? #???# !! #????????# | | ???????????? ???????! #???### +????????# | | ?????????????????????? #?????# #????????# | | ?????????????????????? [[??????# #### #????????? | | ???????????????????????????????# #??### #????????? | | ???????????????????????????????# ?????? #????????? | | ???????????????????????????????# ?????? #????????? | +----------------------------------------------------+ Best States ------------- Heat Dissipation 78 Coolant Potential 65 Energy Generation 35 Energy Capacity 800 Matter Stores 300 Matter Capacity 600 Sight Range 22 Terrain Scan Range 16 Terrain Scan Density 10 Additional Mass Support 16 Armor Coverage 375 Resistance: KI 25 Resistance: TH 30 Propulsion Shielding 33 Weapon Shielding 66 Evasion (%) 58 Targeting Accuracy 16 Target Analysis 6 Core Analysis 6 Recoil Reduction 9 Offensive Hacking 38 Defensive Hacking 12 Item Schematics ----------------- Adv. Recoil Stabilizer | -4/Factory | Scanalyzed Imp. Hardlight Generator | -4/Factory | Extracted Med. Storage Unit | -4/Factory | Extracted Lrn. Proton Cannon | -4/Factory | Extracted Robot Schematics ------------------ None Fabricated ------------ G-67 Veteran | x3 | -4/Factory | Preloaded Repaired ---------- Lgt. Cannon | 85% | -10/Materials Antigrav System | 32% | -5/Factory KE Penetrator | 32% | -5/Extension Studied --------- Antigrav System | -4/Factory | Hacked Imp. Hover Unit | -4/Factory | Hacked Alien Tech Used ----------------- None Achievements -------------- None Challenges ------------ None Game ------ Seed PulseConstructMatterbank Manual? 0 Play Time 03:04:38 Cumulative 730.3 hours Start 2026.07.22 @ 16:06:53 End 2026.07.27 @ 19:15:28 Sessions 3 Manual Loads 0 Difficulty Rogue Special Mode None Game No. 357 Rogue 357 Adventurer 0 Explorer 0 Win Type - Total 7 Types 3/0/2/1/0/0/0/0/0/1 Lore% 87 Gallery% 76 Achievement% 60 Wizard Run 0 Options --------- Layout 2 ASCII 0 Keyboard 1 Movement Vi Keybinds 0 Fullscreen 1 Font 16/Proggy Map View 55x47 Zoom Use 0% Tactical HUD 1 Map Filters NONE Filters NONE Steam 0 RUN: 0bcc028a-4a78-4228-8f40-4099f55d49c9